fUSD/lending_fUSD_20240117
["ID","MTS","AMOUNT","RATE_DAILY","PERIOD"]
[311972849,1705523470174,-500.0,0.00022465,2]
[311972850,1705523470186,-500.0,0.00022465,2]
[311972851,1705523470195,-500.0,0.00022465,2]
[311972852,1705523470205,-500.0,0.00022465,2]
[311972853,1705523470215,-500.0,0.00022465,2]
[311972854,1705523470225,-500.0,0.00022465,2]
[311972855,1705523470235,-213.59,0.00022465,2]
[311972856,1705523470245,-761.52,0.00022465,2]
[311972857,1705523470254,-892.9,0.00022465,2]
[311972858,1705523470264,-500.0,0.00022465,2]
[311972859,1705523470274,-500.0,0.00022465,2]
[311972860,1705523470284,-500.0,0.00022465,2]
[311972861,1705523470294,-500.0,0.00022465,2]
[311972862,1705523470304,-500.0,0.00022465,2]
[311972863,1705523470314,-1108.88,0.00022465,2]
[311972864,1705523470324,-500.0,0.00022465,2]
[311972865,1705523470334,-500.0,0.00022465,2]
[311972866,1705523470344,-500.0,0.00022465,2]
[311972867,1705523470560,-500.0,0.00022465,2]
[311972868,1705523470570,-1002.3,0.00022465,2]
[311972869,1705523470580,-500.0,0.00022465,2]
[311972870,1705523470589,-500.0,0.00022465,2]
[311972871,1705523470598,-601.77,0.00022465,2]
[311972872,1705523470608,-500.0,0.00022465,2]
[311972873,1705523470617,-500.0,0.00022465,2]
[311972874,1705523470627,-500.0,0.00022465,2]
[311972875,1705523470636,-500.0,0.00022465,2]
[311972876,1705523470646,-500.0,0.00022465,2]
[311972877,1705523470657,-500.0,0.00022465,2]
[311972878,1705523470666,-500.0,0.00022465,2]
[311972879,1705523470676,-500.0,0.00022465,2]
[311972880,1705523470685,-500.0,0.00022465,2]
[311972881,1705523470696,-500.0,0.00022465,2]
[311972882,1705523470706,-1017.13,0.00022465,2]
[311972883,1705523470716,-557.46,0.00022465,2]
[311972884,1705523470725,-500.0,0.00022465,2]
[311972885,1705523470734,-500.0,0.00022465,2]
[311972886,1705523470744,-500.0,0.00022465,2]
[311972887,1705523470754,-1814.92,0.00022465,5]
[311972888,1705523470764,-233.97,0.00022465,2]
[311972889,1705523470773,-1364.4,0.00022465,2]
[311972890,1705523470783,-500.0,0.00022465,2]
[311972891,1705523470792,-500.0,0.00022465,2]
[311972892,1705523470801,-1499.88,0.00022465,2]
[311972893,1705523470810,-908.83,0.00022465,2]
[311972894,1705523470819,-543.48,0.00022465,2]
[311972895,1705523470829,-500.0,0.00022465,2]
[311972896,1705523470838,-519.56,0.00022465,2]
[311972897,1705523470848,-500.0,0.00022465,2]
[311972898,1705523470857,-500.0,0.00022465,2]
[311972899,1705523470867,-500.0,0.00022465,2]
[311972900,1705523470877,-500.0,0.00022465,2]
[311972901,1705523470886,-500.0,0.00022465,2]
[311972902,1705523470896,-500.0,0.00022465,2]
[311972903,1705523470906,-500.0,0.00022465,2]
[311972904,1705523470915,-500.0,0.00022465,2]
[311972905,1705523470924,-500.0,0.00022465,2]
[311972906,1705523470934,-192.57,0.00022465,2]
[311972907,1705523470944,-500.0,0.00022465,2]
[311972908,1705523470954,-500.0,0.00022465,2]
[311972909,1705523470964,-500.0,0.00022465,2]
[311972910,1705523470973,-534.84,0.00022465,2]
[311972911,1705523470982,-500.0,0.00022465,2]
[311972912,1705523470993,-500.0,0.00022465,5]
[311972913,1705523471003,-180.46801637,0.00022465,2]
[311972914,1705523471013,-500.0,0.00022465,2]
[311972915,1705523471023,-749.43,0.00022471,2]
[311972916,1705523471032,-261.76,0.00022474,2]
[311972917,1705523471041,-381.504,0.00022478,2]
[311972918,1705523471050,-156.11,0.00022489,2]
[311972919,1705523471062,-1958.07769938,0.00022496,2]
[311972920,1705523471071,-3834.96956328,0.00022496,2]
[311972921,1705523471081,-15990.56782194,0.00022496,2]
[311972922,1705523471091,-2835.27767488,0.00022496,2]
[311972923,1705523471101,-317.25710299,0.00022496,2]
[311972924,1705523471111,-1357.3,0.00022499,2]
[311972925,1705523471120,-1251.93526132,0.000225,2]
[311972926,1705523471129,-12238.12948093,0.000225,2]
[311972927,1705523471139,-156.34,0.00022515,2]
[311972928,1705523471148,-389.12675731,0.00022518,2]
[311972929,1705523471158,-1155.0,0.00022542,2]
[311972930,1705523471167,-800.0,0.00022553,2]
[311972931,1705523471177,-150.0,0.00022556,2]
[311972932,1705523471187,-200.0,0.0002256,2]
[311972933,1705523471196,-500.0,0.00022568,2]
[311972934,1705523471206,-200.0,0.00022585,2]
[311972935,1705523471215,-290.78253396,0.00022591,2]
[311972936,1705523471224,-224.57098569,0.00022591,2]
[311972937,1705523471234,-389.12675731,0.00022594,2]
[311972938,1705523471244,-150.0,0.00022597,2]
[311972939,1705523471253,-500.0,0.00022602,2]
[311972940,1705523471263,-200.0,0.0002261,2]
[311972941,1705523471273,-500.0,0.00022635,2]
[311972942,1705523471282,-200.0,0.00022635,2]
[311972943,1705523471292,-2000.0,0.00022637,2]
[311972944,1705523471301,-150.0,0.00022645,2]
[311972945,1705523471310,-150.0,0.00022645,2]
[311972946,1705523471320,-150.0,0.00022654,2]
[311972947,1705523471329,-150.0,0.00022655,2]
[311972948,1705523471338,-150.0,0.00022657,2]
[311972949,1705523471349,-150.0,0.00022659,2]
[311972950,1705523471358,-150.0,0.00022659,2]
[311972951,1705523471367,-180.0,0.00022661,2]
[311972952,1705523471377,-162.58,0.00022661,2]
[311972953,1705523471386,-150.0,0.00022663,2]
[311972954,1705523471396,-150.0,0.00022666,2]
[311972955,1705523471406,-150.0,0.00022666,2]
[311972956,1705523471415,-389.12675731,0.00022671,2]
[311972957,1705523471425,-1500.0,0.00022673,2]
[311972958,1705523471434,-150.0,0.00022679,2]
[311972959,1705523471443,-200.0,0.0002268,2]
[311972960,1705523471453,-150.0,0.00022682,2]
[311972961,1705523471462,-150.0,0.00022683,2]
[311972962,1705523471471,-200.0,0.00022685,2]
[311972963,1705523471481,-800.0,0.00022685,2]
[311972964,1705523471491,-296.57,0.00022685,2]
[311972965,1705523471500,-749.43,0.00022687,2]
[311972966,1705523471510,-261.76,0.00022694,2]
[311972967,1705523471519,-500.0,0.00022695,2]
[311972968,1705523471528,-150.0,0.00022697,2]
[311972969,1705523471538,-150.0,0.00022699,2]
[311972970,1705523471548,-150.0,0.000227,2]
[311972971,1705523471557,-150.0,0.00022704,2]
[311972972,1705523471566,-150.0,0.0002271,2]
[311972973,1705523471576,-157.39,0.00022715,2]
[311972974,1705523471585,-150.0,0.00022716,2]
[311972975,1705523471597,-150.0,0.00022722,2]
[311972976,1705523471606,-151.0,0.00022725,7]
[311972977,1705523471616,-151.0,0.00022725,7]
[311972978,1705523471625,-151.0,0.00022725,7]
[311972979,1705523471634,-200.0,0.00022725,2]
[311972980,1705523471644,-150.0,0.00022727,2]
[311972981,1705523471654,-999.99,0.0002273,2]
[311972982,1705523471664,-1000.01,0.0002273,2]
[311972983,1705523471673,-999.99,0.0002273,2]
[311972984,1705523471683,-1000.01,0.0002273,2]
[311972985,1705523471692,-150.0,0.00022734,2]
[311972986,1705523471702,-150.0,0.00022736,2]
[311972987,1705523471711,-150.0,0.00022738,2]
[311972988,1705523471720,-500.0,0.00022738,2]
[311972989,1705523471729,-150.0,0.00022738,2]
[311972990,1705523471738,-1357.3,0.00022738,2]
[311972991,1705523471748,-1357.3,0.00022738,2]
[311972992,1705523471757,-1357.3,0.00022738,2]
[311972993,1705523471766,-1357.3,0.00022738,2]
[311972994,1705523471776,-1357.3,0.00022738,2]
[311972995,1705523471785,-1357.3,0.00022738,2]
[311972996,1705523471795,-1357.3,0.00022738,2]
[311972997,1705523471805,-1357.3,0.00022738,2]
[311972998,1705523471815,-1357.3,0.00022738,2]
[311972999,1705523471824,-1357.3,0.00022738,2]
[311973000,1705523471833,-520.68,0.00022739,2]
[311973001,1705523471843,-319.24,0.00022739,2]
[311973002,1705523471852,-246.32,0.00022739,2]
[311973003,1705523471861,-500.0,0.00022739,2]
[311973004,1705523471871,-500.0,0.00022739,2]
[311973005,1705523471880,-500.0,0.00022739,2]
[311973006,1705523471889,-500.0,0.00022739,2]
[311973007,1705523471898,-500.0,0.00022739,2]
[311973008,1705523471908,-500.0,0.00022739,2]
[311973009,1705523471917,-500.0,0.00022739,2]
[311973010,1705523471927,-332.82,0.00022739,2]
[311973011,1705523471936,-500.0,0.00022739,2]
[311973012,1705523471945,-500.0,0.00022739,2]
[311973013,1705523471955,-510.55809254,0.00022739,2]
[311973014,1705523471965,-500.0,0.00022739,2]
[311973015,1705523471976,-255.84,0.00022739,2]
[311973016,1705523471985,-526.27186447,0.00022739,2]
[311973017,1705523471994,-500.0,0.00022739,2]
[311973018,1705523472004,-528.39,0.00022739,2]
[311973019,1705523472015,-500.0,0.00022739,2]
[311973020,1705523472024,-500.0,0.00022739,2]
[311973021,1705523472033,-500.0,0.00022739,2]
[311973022,1705523472042,-246.98,0.00022739,2]
[311973023,1705523472051,-486.77,0.00022739,2]
[311973024,1705523472062,-500.0,0.00022739,2]
[311973025,1705523472071,-500.0,0.00022739,2]
[311973026,1705523472081,-285.92,0.00022739,2]
[311973027,1705523472090,-500.0,0.00022739,2]
[311973028,1705523472099,-638.49,0.00022739,2]
[311973029,1705523472108,-500.0,0.00022739,2]
[311973030,1705523472117,-500.0,0.00022739,2]
[311973031,1705523472126,-500.0,0.00022739,2]
[311973032,1705523472136,-500.0,0.00022739,2]
[311973033,1705523472146,-500.0,0.00022739,2]
[311973034,1705523472155,-511.14,0.00022739,2]
[311973035,1705523472166,-500.0,0.00022739,2]
[311973036,1705523472176,-500.0,0.00022739,2]
[311973037,1705523472185,-520.79751879,0.00022739,2]
[311973038,1705523472194,-163.36,0.00022739,2]
[311973039,1705523472204,-500.0,0.00022739,2]
[311973040,1705523472214,-500.0,0.00022739,2]
[311973041,1705523472223,-604.63,0.00022739,2]
[311973042,1705523472232,-161.9,0.00022739,2]
[311973043,1705523472242,-500.0,0.00022739,2]
[311973044,1705523472251,-327.25,0.00022739,2]
[311973045,1705523472260,-173.47,0.00022739,2]
[311973046,1705523472270,-500.0,0.00022739,2]
[311973047,1705523472279,-500.0,0.00022739,2]
[311973048,1705523472288,-607.88,0.00022739,2]
[311973049,1705523472298,-500.0,0.00022739,2]
[311973050,1705523472307,-500.0,0.00022739,2]
[311973051,1705523472317,-500.0,0.00022739,2]
[311973052,1705523472327,-308.31,0.00022739,2]
[311973053,1705523472337,-500.0,0.00022739,2]
[311973054,1705523472346,-265.01,0.00022739,2]
[311973055,1705523472355,-500.0,0.00022739,2]
[311973056,1705523472365,-500.0,0.00022739,2]
[311973057,1705523472374,-152.06,0.00022739,2]
[311973058,1705523472384,-556.27158744,0.00022739,2]
[311973059,1705523472393,-500.0,0.00022739,2]
[311973060,1705523472403,-500.0,0.00022739,2]
[311973061,1705523472415,-500.0,0.00022739,2]
[311973062,1705523472424,-500.0,0.00022739,2]
[311973063,1705523472433,-500.0,0.00022739,2]
[311973064,1705523472442,-527.07,0.00022739,2]
[311973065,1705523472451,-500.0,0.00022739,2]
[311973066,1705523472460,-500.0,0.00022739,2]
[311973067,1705523472469,-173.75,0.00022739,2]
[311973068,1705523472478,-500.0,0.00022739,2]
[311973069,1705523472488,-500.0,0.00022739,2]
[311973070,1705523472497,-500.0,0.00022739,2]
[311973071,1705523472507,-500.0,0.00022739,2]
[311973072,1705523472516,-577.44637326,0.00022739,2]
[311973073,1705523472525,-500.0,0.00022739,2]
[311973074,1705523472534,-500.0,0.00022739,2]
[311973075,1705523472543,-500.0,0.00022739,2]
[311973076,1705523472552,-572.31,0.00022739,2]
[311973077,1705523472561,-500.0,0.00022739,2]
[311973078,1705523472570,-500.0,0.00022739,2]
[311973079,1705523472579,-500.0,0.00022739,2]
[311973080,1705523472588,-500.0,0.00022739,2]
[311973081,1705523472597,-500.0,0.00022739,2]
[311973082,1705523472606,-500.0,0.00022739,2]
[311973083,1705523472615,-500.0,0.00022739,2]
[311973084,1705523472624,-500.0,0.00022739,2]
[311973085,1705523472633,-173.32,0.00022739,2]
[311973086,1705523472642,-500.0,0.00022739,2]
[311973087,1705523472652,-500.0,0.00022739,2]
[311973088,1705523472664,-500.0,0.00022739,2]
[311973089,1705523472674,-500.0,0.00022739,2]
[311973090,1705523472683,-500.0,0.00022739,2]
[311973091,1705523472692,-500.0,0.00022739,2]
[311973092,1705523472702,-500.0,0.00022739,2]
[311973093,1705523472711,-500.0,0.00022739,2]
[311973094,1705523472720,-500.0,0.00022739,2]
[311973095,1705523472730,-500.0,0.00022739,2]
[311973096,1705523472739,-423.93,0.00022739,2]
[311973097,1705523472749,-500.0,0.00022739,2]
[311973098,1705523472758,-500.0,0.00022739,2]
[311973099,1705523472770,-500.0,0.00022739,2]
[311973100,1705523472779,-626.78,0.00022739,2]
[311973101,1705523472788,-546.15,0.00022739,2]
[311973102,1705523472855,-500.0,0.00022739,2]
[311973103,1705523472864,-500.0,0.00022739,2]
[311973104,1705523472874,-500.0,0.00022739,2]
[311973105,1705523472884,-500.0,0.00022739,2]
[311973106,1705523472894,-500.0,0.00022739,2]
[311973107,1705523472903,-500.0,0.00022739,2]
[311973108,1705523472916,-500.0,0.00022739,2]
[311973109,1705523472926,-500.0,0.00022739,2]
[311973110,1705523472936,-500.0,0.00022739,2]
[311973111,1705523472945,-500.0,0.00022739,2]
[311973112,1705523472955,-296.99537998,0.00022739,2]
[311973113,1705523472964,-156.6,0.00022739,2]
[311973114,1705523472974,-500.0,0.00022739,2]
[311973115,1705523472984,-500.0,0.00022739,2]
[311973116,1705523472995,-500.0,0.00022739,2]
[311973117,1705523473004,-500.0,0.00022739,2]
[311973118,1705523473014,-334.06,0.00022739,2]
[311973119,1705523473023,-500.0,0.00022739,2]
[311973120,1705523473033,-500.0,0.00022739,2]
[311973121,1705523473042,-266.37,0.00022739,2]
[311973122,1705523473052,-500.0,0.00022739,2]
[311973123,1705523473062,-500.0,0.00022739,2]
[311973124,1705523473072,-500.0,0.00022739,2]
[311973125,1705523473082,-194.35,0.00022739,2]
[311973126,1705523473091,-500.0,0.00022739,2]
[311973127,1705523473100,-500.0,0.00022739,2]
[311973128,1705523473110,-500.0,0.00022739,2]
[311973129,1705523473118,-500.0,0.00022739,2]
[311973130,1705523473127,-338.43,0.00022739,2]
[311973131,1705523473136,-567.28,0.00022739,2]
[311973132,1705523473146,-638.61,0.00022739,2]
[311973133,1705523473155,-500.0,0.00022739,2]
[311973134,1705523473166,-500.0,0.00022739,2]
[311973135,1705523473176,-500.0,0.00022739,2]
[311973136,1705523473186,-500.0,0.00022739,2]
[311973137,1705523473195,-500.0,0.00022739,2]
[311973138,1705523473204,-575.17,0.00022739,2]
[311973139,1705523473214,-500.0,0.00022739,2]
[311973140,1705523473224,-500.0,0.00022739,2]
[311973141,1705523473233,-500.0,0.00022739,2]
[311973142,1705523473243,-500.0,0.00022739,2]
[311973143,1705523473253,-500.0,0.00022739,2]
[311973144,1705523473262,-500.0,0.00022739,2]
[311973145,1705523473272,-500.0,0.00022739,2]
[311973146,1705523473282,-500.0,0.00022739,2]
[311973147,1705523473292,-500.0,0.00022739,2]
[311973148,1705523473302,-500.0,0.00022739,2]
[311973149,1705523473311,-500.0,0.00022739,2]
[311973150,1705523473320,-150.0,0.00022739,2]
[311973151,1705523473330,-500.0,0.00022739,2]
[311973152,1705523473339,-500.0,0.00022739,2]
[311973153,1705523473349,-500.0,0.00022739,2]
[311973154,1705523473359,-500.0,0.00022739,2]
[311973155,1705523473369,-500.0,0.00022739,2]
[311973156,1705523473379,-500.0,0.00022739,2]
[311973157,1705523473388,-500.0,0.00022739,2]
[311973158,1705523473398,-500.0,0.00022739,2]
[311973159,1705523473411,-500.0,0.00022739,2]
[311973160,1705523473421,-500.0,0.00022739,2]
[311973161,1705523473430,-583.01,0.00022739,2]
[311973162,1705523473441,-500.0,0.00022739,2]
[311973163,1705523473452,-500.0,0.00022739,2]
[311973164,1705523473462,-500.0,0.00022739,2]
[311973165,1705523473472,-242.95,0.00022739,2]
[311973166,1705523473482,-500.0,0.00022739,2]
[311973167,1705523473492,-582.32,0.00022739,2]
[311973168,1705523473502,-232.85,0.00022739,2]
[311973169,1705523473511,-500.0,0.00022739,2]
[311973170,1705523473520,-287.87,0.00022739,2]
[311973171,1705523473529,-500.0,0.00022739,2]
[311973172,1705523473538,-500.0,0.00022739,2]
[311973173,1705523473547,-500.0,0.00022739,2]
[311973174,1705523473556,-500.0,0.00022739,2]
[311973175,1705523473566,-500.0,0.00022739,2]
[311973176,1705523473575,-500.0,0.00022739,2]
[311973177,1705523473585,-500.0,0.00022739,2]
[311973178,1705523473594,-500.0,0.00022739,2]
[311973179,1705523473602,-500.0,0.00022739,2]
[311973180,1705523473611,-500.0,0.00022739,2]
[311973181,1705523473620,-163.53,0.00022739,2]
[311973182,1705523473629,-500.0,0.00022739,2]
[311973183,1705523473638,-500.0,0.00022739,2]
[311973184,1705523473648,-500.0,0.00022739,2]
[311973185,1705523473658,-500.0,0.00022739,2]
[311973186,1705523473668,-500.0,0.00022739,2]
[311973187,1705523473680,-500.0,0.00022739,2]
[311973188,1705523473689,-500.0,0.00022739,2]
[311973189,1705523473699,-500.0,0.00022739,2]
[311973190,1705523473707,-810.95,0.00022739,2]
[311973191,1705523473716,-500.0,0.00022739,2]
[311973192,1705523473725,-166.38,0.00022739,2]
[311973193,1705523473734,-500.0,0.00022739,2]
[311973194,1705523473743,-1518.81,0.00022739,2]
[311973195,1705523473752,-962.31,0.00022739,2]
[311973196,1705523473762,-500.0,0.00022739,2]
[311973197,1705523473771,-1471.89,0.00022739,2]
[311973198,1705523473780,-1697.36,0.00022739,2]
[311973199,1705523473789,-500.0,0.00022739,2]
[311973200,1705523473798,-603.00022994,0.00022739,2]
[311973201,1705523473807,-500.0,0.00022739,2]
[311973202,1705523473816,-500.0,0.00022739,2]
[311973203,1705523473826,-630.86,0.00022739,2]
[311973204,1705523473835,-626.99,0.00022739,2]
[311973205,1705523473844,-394.28,0.00022739,2]
[311973206,1705523473854,-500.0,0.00022739,2]
[311973207,1705523473863,-500.0,0.00022739,2]
[311973208,1705523473872,-303.32,0.00022739,2]
[311973209,1705523473881,-500.0,0.00022739,2]
[311973210,1705523473890,-475.62,0.00022739,2]
[311973211,1705523473899,-670.1,0.00022739,2]
[311973212,1705523473909,-500.0,0.00022739,2]
[311973213,1705523473919,-500.0,0.00022739,2]
[311973214,1705523473929,-500.0,0.00022739,2]
[311973215,1705523473938,-500.0,0.00022739,2]
[311973216,1705523473947,-500.0,0.00022739,2]
[311973217,1705523473956,-500.0,0.00022739,2]
[311973218,1705523473965,-500.0,0.00022739,2]
[311973219,1705523473974,-902.67,0.00022739,2]
[311973220,1705523473983,-500.0,0.00022739,2]
[311973221,1705523473994,-500.0,0.00022739,2]
[311973222,1705523474004,-454.18,0.00022739,2]
[311973223,1705523474013,-1005.81,0.00022739,2]
[311973224,1705523474023,-500.0,0.00022739,2]
[311973225,1705523474033,-500.0,0.00022739,2]
[311973226,1705523474042,-208.16,0.00022739,2]
[311973227,1705523474051,-500.0,0.00022739,2]
[311973228,1705523474060,-558.11,0.00022739,2]
[311973229,1705523474070,-356.72,0.00022739,2]
[311973230,1705523474079,-1088.87,0.00022739,2]
[311973231,1705523474089,-500.0,0.00022739,2]
[311973232,1705523474098,-500.0,0.00022739,2]
[311973233,1705523474107,-556.01,0.00022739,2]
[311973234,1705523474116,-500.0,0.00022739,2]
[311973235,1705523474125,-500.0,0.00022739,2]
[311973236,1705523474134,-6978.36,0.00022739,2]
[311973237,1705523474144,-500.0,0.00022739,2]
[311973238,1705523474153,-281.08,0.00022739,2]
[311973239,1705523474164,-500.0,0.00022739,2]
[311973240,1705523474174,-500.0,0.00022739,2]
[311973241,1705523474183,-500.0,0.00022739,2]
[311973242,1705523474192,-503.95,0.00022739,2]
[311973243,1705523474201,-500.0,0.00022739,2]
[311973244,1705523474210,-500.0,0.00022739,2]
[311973245,1705523474219,-500.0,0.00022739,2]
[311973246,1705523474228,-5568.45,0.00022739,2]
[311973247,1705523474237,-500.0,0.00022739,2]
[311973248,1705523474247,-847.82,0.00022739,2]
[311973249,1705523474256,-369.48,0.00022739,2]
[311973250,1705523474266,-500.0,0.00022739,2]
[311973251,1705523474275,-500.0,0.00022739,2]
[311973252,1705523474284,-500.0,0.00022739,2]
[311973253,1705523474294,-500.0,0.00022739,2]
[311973254,1705523474303,-500.0,0.00022739,2]
[311973255,1705523474313,-390.94,0.00022739,2]
[311973256,1705523474323,-500.0,0.00022739,2]
[311973257,1705523474333,-3571.55,0.00022739,2]
[311973258,1705523474342,-500.0,0.00022739,2]
[311973259,1705523474351,-500.0,0.00022739,2]
[311973260,1705523474361,-500.0,0.00022739,2]
[311973261,1705523474370,-500.0,0.00022739,2]
[311973262,1705523474379,-500.0,0.00022739,2]
[311973263,1705523474389,-500.0,0.00022739,2]
[311973264,1705523474398,-500.0,0.00022739,2]
[311973265,1705523474409,-500.0,0.00022739,2]
[311973266,1705523474418,-500.0,0.00022739,2]
[311973267,1705523474427,-1364.29,0.00022739,2]
[311973268,1705523474436,-500.0,0.00022739,2]
[311973269,1705523474446,-500.0,0.00022739,2]
[311973270,1705523474455,-500.0,0.00022739,2]
[311973271,1705523474464,-500.0,0.00022739,2]
[311973272,1705523474473,-216.13,0.00022739,2]
[311973273,1705523474482,-500.0,0.00022739,2]
[311973274,1705523474491,-2318.01,0.00022739,2]
[311973275,1705523474501,-529.83,0.00022739,2]
[311973276,1705523474510,-500.0,0.00022739,2]
[311973277,1705523474519,-500.0,0.00022739,2]
[311973278,1705523474529,-500.0,0.00022739,2]
[311973279,1705523474537,-226.57,0.00022739,2]
[311973280,1705523474547,-554.51,0.00022739,2]
[311973281,1705523474556,-500.0,0.00022739,2]
[311973282,1705523474566,-500.0,0.00022739,2]
[311973283,1705523474575,-500.0,0.00022739,2]
[311973284,1705523474584,-500.0,0.00022739,2]
[311973285,1705523474593,-245.43,0.00022739,2]
[311973286,1705523474602,-500.0,0.00022739,2]
[311973287,1705523474612,-500.0,0.00022739,2]
[311973288,1705523474622,-500.0,0.00022739,2]
[311973289,1705523474631,-569.76,0.00022739,2]
[311973290,1705523474640,-500.0,0.00022739,2]
[311973291,1705523474649,-726.09,0.00022739,2]
[311973292,1705523474659,-500.0,0.00022739,2]
[311973293,1705523474668,-500.0,0.00022739,2]
[311973294,1705523474678,-1453.38,0.00022739,2]
[311973295,1705523474687,-936.04,0.00022739,2]
[311973296,1705523474696,-229.36,0.00022739,2]
[311973297,1705523474705,-537.49,0.00022739,2]
[311973298,1705523474714,-784.41,0.00022739,2]
[311973299,1705523474723,-500.0,0.00022739,2]
[311973300,1705523474732,-500.0,0.00022739,2]
[311973301,1705523474741,-500.0,0.00022739,2]
[311973302,1705523474750,-500.0,0.00022739,2]
[311973303,1705523474760,-500.0,0.00022739,2]
[311973304,1705523474769,-500.0,0.00022739,2]
[311973305,1705523474778,-562.24,0.00022739,2]
[311973306,1705523474787,-500.0,0.00022739,2]
[311973307,1705523474796,-5379.02,0.00022739,2]
[311973308,1705523474806,-552.27,0.00022739,2]
[311973309,1705523474815,-500.0,0.00022739,2]
[311973310,1705523474825,-594.53,0.00022739,2]
[311973311,1705523474834,-500.0,0.00022739,2]
[311973312,1705523474844,-512.4,0.00022739,2]
[311973313,1705523474853,-1909.32,0.00022739,2]
[311973314,1705523474863,-500.0,0.00022739,2]
[311973315,1705523474873,-500.0,0.00022739,2]
[311973316,1705523474883,-500.0,0.00022739,2]
[311973317,1705523474892,-500.0,0.00022739,2]
[311973318,1705523474902,-500.0,0.00022739,2]
[311973319,1705523474912,-500.0,0.00022739,2]
[311973320,1705523474922,-500.0,0.00022739,2]
[311973321,1705523474931,-500.0,0.00022739,2]
[311973322,1705523474942,-500.0,0.00022739,2]
[311973323,1705523474952,-543.85,0.00022739,2]
[311973324,1705523474962,-500.0,0.00022739,2]
[311973325,1705523474972,-241.02,0.00022739,2]
[311973326,1705523474982,-500.0,0.00022739,2]
[311973327,1705523474994,-500.0,0.00022739,2]
[311973328,1705523475003,-500.0,0.00022739,2]
[311973329,1705523475014,-500.0,0.00022739,2]
[311973330,1705523475024,-611.67,0.00022739,2]
[311973331,1705523475033,-500.0,0.00022739,2]
[311973332,1705523475043,-500.0,0.00022739,2]
[311973333,1705523475054,-500.0,0.00022739,2]
[311973334,1705523475064,-500.0,0.00022739,2]
[311973335,1705523475073,-500.0,0.00022739,2]
[311973336,1705523475083,-500.0,0.00022739,2]
[311973337,1705523475092,-761.52,0.00022739,2]
[311973338,1705523475102,-892.9,0.00022739,2]
[311973339,1705523475111,-162.93,0.00022739,2]
[311973340,1705523475121,-435.37,0.00022739,2]
[311973341,1705523475130,-500.0,0.00022739,2]
[311973342,1705523475140,-475.3,0.00022739,2]
[311973343,1705523475150,-500.0,0.00022739,2]
[311973344,1705523475161,-1108.88,0.00022739,2]
[311973345,1705523475171,-538.66,0.00022739,2]
[311973346,1705523475180,-500.0,0.00022739,2]
[311973347,1705523475190,-500.0,0.00022739,2]
[311973348,1705523475199,-500.0,0.00022739,2]